bitfinex/quotes_SOLUSD_20240613
["timestamp","ask_amount","ask_price","bid_price","bid_amount"]
[1718307319269,7.6,148.26,148.2,4.993]
[1718307319477,10.0959,148.25,148.22,2.4962]
[1718307319662,2.4957,148.26,148.22,2.4962]
[1718307319968,2.4957,148.26,148.23,2.4961]
[1718307320176,10.0957,148.26,148.22,2.4961]
[1718307321457,2.4963,148.22,148.18,2.4968]
[1718307321762,7.6,148.19,148.16,2.4972]
[1718307321964,10.0968,148.19,148.15,2.4973]
[1718307322268,3.0065,148.21,148.17,2.4971]
[1718307322477,7.6,148.2,148.17,2.4971]
[1718307322688,7.6,148.19,148.16,2.4972]
[1718307323283,7.6,148.19,148.17,2.4971]
[1718307323450,7.6,148.2,148.15,20.0872]
[1718307323656,7.6,148.2,148.17,2.497]
[1718307324057,7.6,148.2,148.15,12.5948]
[1718307324058,7.6,148.2,148.16,2.4972]
[1718307324266,7.6,148.2,148.15,12.5948]
[1718307324267,7.6,148.2,148.17,2.497]
[1718307324969,2.4965,148.21,148.17,2.497]
[1718307325161,47.6663,148.22,148.17,2.497]
[1718307325370,2.4964,148.21,148.17,2.497]
[1718307325576,2.4968,148.19,148.13,12.4888]
[1718307325753,2.4968,148.19,148.15,2.4973]
[1718307326693,2.4972,148.17,148.12,2.4978]
[1718307326900,2.4972,148.17,148.13,2.4977]
[1718307327592,47.667,148.18,148.14,2.4976]
[1718307329174,2.497,148.18,148.14,2.4976]
[1718307329372,18.0743,148.19,148.14,2.4976]
[1718307329581,2.4969,148.18,148.14,2.4976]
[1718307330291,2.4972,148.17,148.13,2.4977]
[1718307331302,15.5775,148.19,148.15,2.4974]
[1718307331453,18.0743,148.19,148.15,2.4973]
[1718307331953,2.4969,148.18,148.14,2.4975]
[1718307333109,2.4971,148.17,148.13,2.4977]
[1718307334892,47.497,148.18,148.14,2.4976]
[1718307335096,2.4971,148.17,148.13,2.4977]
[1718307335400,20.5712,148.19,148.15,2.4973]
[1718307335401,18.0743,148.19,148.15,2.4973]
[1718307336103,15.5775,148.19,148.16,2.4972]
[1718307336324,16.0036,148.23,148.15,9.9897]
[1718307336474,2.4965,148.21,148.17,2.497]
[1718307342076,45.51,148.22,148.15,14.9846]
[1718307342077,2.4966,148.2,148.16,2.4972]
[1718307343002,2.4968,148.19,148.15,2.4973]
[1718307343202,45.51,148.22,148.15,9.9898]
[1718307343500,2.4966,148.2,148.17,2.497]
[1718307343821,45.51,148.22,148.17,2.497]
[1718307343822,2.4965,148.21,148.17,2.497]
[1718307344297,2.4966,148.2,148.16,2.4971]
[1718307344507,2.4966,148.2,148.17,2.4971]
[1718307345510,2.4965,148.21,148.17,2.4971]
[1718307345801,2.4966,148.2,148.16,2.4971]
[1718307346298,2.4969,148.19,148.15,2.4974]
[1718307346973,10.1569,148.18,148.15,2.4974]
[1718307347317,7.66,148.18,148.15,2.4974]
[1718307348176,10.1569,148.19,148.15,2.4974]
[1718307349002,2.497,148.18,148.14,2.4975]
[1718307349214,10.1571,148.17,148.14,2.4975]
[1718307349581,2.4971,148.17,148.14,2.4975]
[1718307350398,7.66,148.18,148.14,2.4975]
[1718307350399,2.497,148.18,148.14,2.4975]
[1718307350704,10.1571,148.17,148.14,2.4975]
[1718307350933,7.66,148.17,148.14,2.4975]
[1718307351383,10.1571,148.17,148.13,2.4976]
[1718307351583,10.1573,148.16,148.12,2.4978]
[1718307352010,2.4973,148.16,148.12,2.4978]
[1718307352309,7.66,148.15,148.12,2.4978]
[1718307352627,7.66,148.13,148.09,16.1733]
[1718307352917,0.34,148.16,148.08,9.9945]
[1718307353083,7.66,148.15,148.12,2.4979]
[1718307353420,7.66,148.15,148.13,2.4977]
[1718307354086,0.17,148.18,148.14,2.4976]
[1718307354285,45.51,148.18,148.14,2.4976]
[1718307354484,7.66,148.17,148.14,2.4976]
[1718307354911,3.007,148.18,148.14,2.4976]
[1718307355119,7.66,148.17,148.14,2.4976]
[1718307355292,3.007,148.18,148.13,2.4977]
[1718307355492,2.4968,148.19,148.14,2.4975]
[1718307355715,7.66,148.18,148.14,2.4975]
[1718307355919,2.6668,148.19,148.14,2.4975]
[1718307356113,7.66,148.18,148.14,2.4975]
[1718307356299,7.66,148.18,148.15,2.4974]
[1718307356504,10.3268,148.19,148.15,2.4974]
[1718307356689,7.66,148.18,148.14,2.4975]
[1718307356894,10.157,148.18,148.14,2.4975]
[1718307357090,7.66,148.18,148.14,2.4975]
[1718307357296,7.66,148.18,148.15,2.4974]
[1718307357506,7.66,148.18,148.14,2.4975]
[1718307357907,7.66,148.18,148.15,2.4974]
[1718307359403,7.66,148.18,148.14,2.4975]
[1718307359898,10.1569,148.18,148.14,2.4975]
[1718307360523,2.4969,148.18,148.14,2.4975]
[1718307360732,47.4967,148.2,148.16,2.4972]
[1718307360895,7.66,148.19,148.16,2.4972]
[1718307361223,7.66,148.2,148.17,2.497]
[1718307361393,10.1565,148.21,148.17,2.497]
[1718307363215,7.66,148.2,148.17,2.497]
[1718307364898,10.1566,148.2,148.16,2.4972]
[1718307365096,2.4968,148.19,148.15,2.4973]
[1718307365300,10.1568,148.19,148.15,2.4974]
[1718307365701,4.9924,148.23,148.16,4.9945]
[1718307365896,7.66,148.21,148.19,2.4967]
[1718307366429,7.66,148.21,148.17,4.9942]
[1718307366430,2.4962,148.23,148.17,12.4855]
[1718307366638,2.4962,148.23,148.19,2.4966]
[1718307366802,10.1562,148.23,148.2,2.4966]
[1718307367319,10.1563,148.22,148.19,2.4966]
[1718307367499,2.4961,148.23,148.19,2.4966]
[1718307367700,7.66,148.22,148.19,2.4966]
[1718307367935,2.4966,148.2,148.17,2.497]
[1718307368101,2.4968,148.19,148.15,25.2037]
[1718307368297,7.66,148.19,148.16,2.4972]
[1718307368526,10.1568,148.19,148.15,18.6975]
[1718307368725,0.34,148.21,148.15,21.1949]
[1718307368927,7.66,148.2,148.18,2.4969]
[1718307369306,7.66,148.21,148.18,2.4969]
[1718307369708,2.4963,148.22,148.18,2.4968]
[1718307369905,10.1565,148.21,148.17,2.497]
[1718307370221,7.66,148.2,148.17,2.497]
[1718307370398,2.4964,148.22,148.18,2.4969]
[1718307370604,50.3322,148.23,148.18,2.4969]
[1718307370605,7.66,148.2,148.18,2.4969]
[1718307370801,7.66,148.2,148.17,2.497]
[1718307371717,2.4963,148.22,148.18,2.4969]
[1718307371923,7.66,148.21,148.18,2.4969]
[1718307372733,48.0062,148.23,148.17,12.4853]
[1718307373046,2.496,148.24,148.2,2.4966]
[1718307373349,7.66,148.23,148.2,2.4966]
[1718307373503,2.4958,148.25,148.21,2.4963]
[1718307373701,7.66,148.25,148.2,17.6462]
[1718307374018,260.76,148.3,148.24,20.1395]
[1718307374212,260.76,148.3,148.26,2.4954]
[1718307374531,263.2549,148.3,148.26,2.4954]
[1718307374830,253.1,148.3,148.25,2.4956]
[1718307375031,253.1,148.3,148.23,7.4883]
[1718307375240,253.1,148.3,148.25,12.4785]
[1718307375410,253.1,148.3,148.25,4.9913]
[1718307375739,253.1,148.3,148.26,2.4955]
[1718307376035,253.1,148.3,148.24,14.9751]
[1718307376240,2.4954,148.27,148.23,2.4959]
[1718307376413,258.09,148.3,148.24,2.4958]
[1718307376414,2.4951,148.29,148.24,2.4958]
[1718307376618,2.4952,148.28,148.24,2.4958]
[1718307376937,12.4757,148.29,148.22,8.5044]
[1718307377139,2.4954,148.27,148.23,2.496]
[1718307377320,2.4953,148.28,148.24,2.4959]
[1718307377732,47.6651,148.29,148.24,2.4959]
[1718307377932,2.4951,148.29,148.25,2.4957]
[1718307378133,255.5949,148.3,148.22,23.4818]
[1718307378448,253.1,148.3,148.22,6.0082]
[1718307378633,253.1,148.3,148.26,9.9822]
[1718307378955,653.5593,148.35,148.23,20.34]
[1718307378956,253.1,148.37,148.31,2.4946]
[1718307379327,2.4941,148.35,148.31,2.4946]
[1718307379526,2.4943,148.34,148.3,2.4948]
[1718307380249,2.4941,148.35,148.3,2.4948]
[1718307380553,2.4941,148.35,148.31,2.4947]
[1718307380734,2.494,148.36,148.31,2.4947]
[1718307380939,2.4941,148.35,148.31,2.4947]
[1718307382369,2.4941,148.35,148.28,28.0493]
[1718307382370,45.0,148.36,148.28,18.0685]
[1718307382526,2.4945,148.33,148.28,18.0685]
[1718307383172,45.17,148.34,148.24,27.5452]
[1718307383337,2.495,148.3,148.25,2.4956]
[1718307383656,2.495,148.3,148.24,15.066]
[1718307383657,2.495,148.3,148.26,2.4955]
[1718307384043,2.4948,148.31,148.26,2.4955]
[1718307384219,2.4949,148.3,148.26,2.4955]
[1718307384423,2.4949,148.3,148.24,15.066]
[1718307384424,2.4949,148.3,148.25,2.4956]
[1718307385034,2.4949,148.3,148.26,2.4955]
[1718307385759,2.4948,148.31,148.27,2.4954]
[1718307387757,47.6647,148.32,148.27,2.4954]
[1718307387936,47.6647,148.32,148.28,2.4952]
[1718307388137,2.6647,148.32,148.28,2.4952]
[1718307388757,2.4948,148.31,148.27,2.4953]
[1718307388967,0.17,148.32,148.24,32.537]
[1718307388968,0.17,148.32,148.24,15.066]
[1718307389258,0.17,148.32,148.22,6.0082]
[1718307389259,7.4849,148.3,148.22,6.0082]
[1718307389445,2.4956,148.26,148.21,2.4963]
[1718307389761,2.4958,148.25,148.21,2.4963]
[1718307390341,2.4956,148.26,148.22,2.4962]
[1718307390543,2.4958,148.25,148.21,2.4963]
[1718307390748,2.4958,148.25,148.2,15.9981]
[1718307390749,57.9873,148.27,148.2,18.4946]
[1718307391258,2.4959,148.25,148.2,18.4946]
[1718307391458,2.4959,148.25,148.21,2.4964]
[1718307391632,2.4957,148.26,148.21,2.4964]
[1718307391833,2.4957,148.26,148.22,2.4962]
[1718307392035,48.0055,148.27,148.22,2.4962]
[1718307392259,3.0055,148.27,148.22,2.4962]
[1718307392965,0.17,148.27,148.23,2.4959]
[1718307393135,0.17,148.27,148.22,4.9925]
[1718307393457,0.17,148.27,148.2,20.9911]
[1718307393653,2.4956,148.26,148.2,20.9911]
[1718307394041,48.8194,148.32,148.2,15.9981]
[1718307394248,2.4951,148.29,148.25,2.4957]
[1718307394444,2.495,148.3,148.23,12.4804]
[1718307394758,2.4951,148.29,148.25,2.4956]
[1718307395139,2.4951,148.29,148.23,4.9922]
[1718307395140,2.4951,148.29,148.24,2.4958]
[1718307395748,2.4951,148.29,148.25,2.4957]
[1718307397971,2.4951,148.29,148.24,2.4958]
[1718307398467,2.4953,148.28,148.24,2.4958]
[1718307398966,0.17,148.27,148.2,20.9911]
[1718307399176,2.4957,148.26,148.22,2.4962]
[1718307400252,48.0055,148.27,148.23,2.4961]
[1718307400756,48.0055,148.27,148.22,2.4961]
[1718307400953,2.4956,148.26,148.22,2.4961]
[1718307403878,45.51,148.27,148.21,2.4964]
[1718307403879,3.0058,148.25,148.21,2.4964]
[1718307404048,2.6658,148.25,148.21,2.4964]
[1718307406169,0.17,148.25,148.21,2.4963]
[1718307406370,0.51,148.25,148.21,2.4963]
[1718307406556,47.4954,148.27,148.2,17.4759]
[1718307406757,2.4954,148.27,148.23,2.496]
[1718307408076,45.17,148.28,148.26,2.4955]
[1718307408276,45.17,148.28,148.18,6.3473]
[1718307408277,45.0,148.28,148.24,4.9918]
[1718307408458,45.0,148.28,148.23,9.9842]
[1718307408459,45.0,148.28,148.25,2.4957]
[1718307408772,2.4951,148.29,148.25,2.4957]
[1718307408981,4.9896,148.31,148.25,2.4957]
[1718307409157,2.4951,148.29,148.25,2.4957]
[1718307412579,47.6649,148.3,148.26,2.4955]
[1718307412791,2.4949,148.3,148.26,2.4955]
[1718307413259,2.4951,148.29,148.25,2.4956]
[1718307413459,2.495,148.3,148.25,2.4956]
[1718307413667,2.495,148.3,148.26,2.4955]
[1718307414392,47.4948,148.31,148.27,2.4954]
[1718307414890,55.1348,148.31,148.27,2.4954]
[1718307416294,47.4948,148.31,148.27,2.4954]
[1718307416501,10.1348,148.31,148.27,2.4954]
[1718307417392,10.1348,148.31,148.26,2.4955]
[1718307418593,2.4948,148.31,148.26,2.4955]
[1718307418793,10.1348,148.31,148.27,2.4954]
[1718307419676,10.1348,148.31,148.26,2.4955]
[1718307419997,2.4949,148.3,148.26,2.4955]
[1718307420193,2.4949,148.3,148.26,3.84430168]
[1718307420672,2.4956,148.26,148.23,6.5833]
[1718307420876,2.4957,148.26,148.22,2.4962]
[1718307421211,10.1355,148.27,148.23,2.4959]
[1718307424983,7.64,148.25,148.22,2.4962]
[1718307425378,2.4957,148.26,148.19,2.4967]
[1718307425379,2.4961,148.23,148.19,2.4967]
[1718307425683,7.64,148.23,148.19,14.9806]
[1718307425871,7.64,148.25,148.22,2.4962]
[1718307426897,7.64,148.27,148.24,2.4959]
[1718307427285,10.1353,148.28,148.24,2.4959]
[1718307428294,2.4953,148.28,148.24,2.4959]
[1718307428485,7.64,148.27,148.24,2.4959]
[1718307429501,10.1354,148.27,148.23,2.496]
[1718307429699,22.7627,148.31,148.23,4.9922]
[1718307429881,7.64,148.29,148.25,2.4956]
[1718307430081,10.1351,148.29,148.25,2.4956]
[1718307430293,2.495,148.3,148.26,2.4955]
[1718307430500,7.64,148.3,148.28,2.4952]
[1718307430708,7.64,148.31,148.27,2.4953]
[1718307430912,10.1347,148.31,148.27,2.4953]
[1718307432286,2.4947,148.31,148.27,2.4953]
[1718307432492,7.64,148.31,148.28,2.4952]
[1718307433207,10.1347,148.32,148.28,2.4952]
[1718307433710,7.64,148.31,148.28,2.4952]
[1718307434209,10.1347,148.31,148.27,2.4953]
[1718307434587,10.135,148.3,148.26,2.4955]
[1718307435427,2.4953,148.28,148.24,2.4958]
[1718307435588,10.1353,148.28,148.24,2.4958]
[1718307436183,10.1353,148.28,148.25,2.4957]
[1718307436691,7.64,148.28,148.25,2.4957]
[1718307437750,7.64,148.27,148.24,2.4958]
[1718307438034,7.64,148.27,148.23,2.496]
[1718307438035,7.64,148.26,148.23,2.496]
[1718307439016,2.4956,148.26,148.22,2.4961]
[1718307439218,7.64,148.25,148.22,2.4961]
[1718307439738,7.64,148.25,148.23,2.496]
[1718307440643,47.4952,148.29,148.25,2.4957]
[1718307440825,7.64,148.27,148.25,2.4957]
[1718307441442,7.64,148.27,148.24,2.4958]
[1718307442337,7.64,148.26,148.23,2.496]
[1718307442538,10.1356,148.26,148.22,2.4961]
[1718307442744,7.64,148.25,148.22,2.4962]
[1718307444315,7.64,148.24,148.22,2.4962]
[1718307444637,7.64,148.24,148.23,2.4961]
[1718307447267,7.64,148.24,148.22,2.4961]
[1718307447544,7.64,148.23,148.21,2.4963]
[1718307447746,7.64,148.23,148.19,33.5488]
[1718307447747,7.64,148.23,148.22,2.4962]
[1718307448222,7.64,148.24,148.23,2.4959]
[1718307448423,2.4953,148.28,148.24,2.4958]
[1718307448621,7.64,148.26,148.24,2.4958]
[1718307449339,7.64,148.25,148.23,2.496]
[1718307449926,7.64,148.25,148.24,2.4959]
[1718307450335,7.64,148.25,148.22,2.4961]
[1718307450735,7.64,148.24,148.22,2.4961]
[1718307452221,7.64,148.23,148.22,2.4961]
[1718307456252,7.64,148.24,148.22,2.4961]
[1718307456650,7.64,148.24,148.21,2.4963]
[1718307456857,7.64,148.23,148.21,2.4963]
[1718307457429,7.64,148.23,148.22,2.4962]
[1718307458133,7.64,148.24,148.22,2.4962]
[1718307461461,7.64,148.24,148.21,2.4963]
[1718307462632,7.64,148.24,148.22,2.4962]
[1718307463160,7.64,148.24,148.21,2.4963]
[1718307464739,7.64,148.23,148.21,2.4963]
[1718307466760,14.9713,148.29,148.21,4.9928]
[1718307466960,45.0,148.28,148.24,2.4958]
[1718307467135,47.4953,148.28,148.24,2.4958]
[1718307467460,7.64,148.26,148.24,2.4958]
[1718307467832,2.4953,148.28,148.24,2.4958]
[1718307468139,7.64,148.26,148.23,2.496]
[1718307468989,2.4953,148.28,148.24,2.4959]
[1718307469264,7.64,148.28,148.25,2.4957]
[1718307469770,10.1349,148.3,148.26,2.4954]
[1718307469934,2.4951,148.29,148.25,2.4956]
[1718307470247,7.64,148.29,148.25,2.4956]
[1718307470453,10.1351,148.29,148.25,2.4956]
[1718307471772,10.1351,148.29,148.23,12.6321]
[1718307471773,7.64,148.28,148.24,2.4958]
[1718307473467,10.1352,148.28,148.24,2.4958]
[1718307473762,2.4954,148.27,148.23,2.496]
[1718307473945,10.1354,148.27,148.23,2.496]
[1718307474146,7.64,148.27,148.23,2.496]
[1718307474850,10.1354,148.27,148.23,2.496]
[1718307475787,7.64,148.27,148.23,2.496]
[1718307476294,10.1354,148.27,148.23,2.496]
[1718307477294,7.64,148.26,148.23,2.496]
[1718307478691,7.64,148.26,148.24,2.4959]
[1718307480296,2.4953,148.28,148.24,2.4959]
[1718307480471,7.64,148.26,148.24,2.4959]
[1718307483598,7.64,148.27,148.24,2.4959]
[1718307483990,7.64,148.27,148.25,2.4957]
[1718307485103,47.4952,148.29,148.26,2.4956]
[1718307485104,45.0,148.29,148.26,2.4956]
[1718307485282,2.4945,148.33,148.24,7.64]
[1718307485484,7.64,148.3,148.28,2.4952]
[1718307485823,7.64,148.3,148.27,2.4953]
[1718307485987,2.4946,148.32,148.27,2.4953]
[1718307486305,7.64,148.3,148.27,2.4953]
[1718307486799,7.64,148.3,148.26,2.4955]
[1718307488199,10.1349,148.3,148.26,2.4955]
[1718307488807,10.1349,148.3,148.25,1.34887639]
[1718307488808,7.64,148.29,148.25,3.84448108]
[1718307489025,7.64,148.29,148.26,2.4955]
[1718307490935,253.1,148.37,148.26,22.2302]
[1718307491135,2.494,148.36,148.31,2.4946]
[1718307491415,7.64,148.35,148.31,2.4946]
[1718307491798,2.4941,148.35,148.3,2.4948]
[1718307491999,10.1341,148.35,148.3,2.4948]
[1718307492897,7.64,148.34,148.3,2.4948]
[1718307493222,7.64,148.34,148.28,7.64]
[1718307493518,6.2316,148.38,148.3,2.4948]
[1718307493519,7.64,148.33,148.3,2.4948]
[1718307494303,7.64,148.34,148.3,2.4948]
[1718307494505,7.64,148.33,148.3,2.4948]
[1718307494899,7.64,148.32,148.28,2.4951]
[1718307495107,2.4948,148.31,148.26,22.2302]
[1718307495312,7.64,148.3,148.26,24.7257]
[1718307495521,7.64,148.3,148.28,2.4952]
[1718307495906,47.4946,148.32,148.27,2.4953]
[1718307496119,7.64,148.3,148.27,2.4953]
[1718307497143,7.64,148.3,148.26,24.7257]
[1718307498223,7.64,148.3,148.27,2.4954]
[1718307498829,7.64,148.3,148.26,24.7257]
[1718307499055,7.64,148.27,148.22,22.763]
[1718307499335,7.64,148.27,148.24,2.4959]
[1718307499759,2.495,148.3,148.25,2.4957]
[1718307500038,2.495,148.3,148.25,2.4956]
[1718307500199,7.64,148.28,148.23,12.4803]
[1718307500599,7.64,148.28,148.26,2.4955]
[1718307501236,45.0,148.31,148.25,4.9914]
[1718307501430,7.64,148.29,148.27,2.4953]
[1718307501604,7.64,148.28,148.25,2.4957]
[1718307502305,2.495,148.3,148.25,2.4957]
[1718307502534,7.64,148.28,148.26,2.4956]
[1718307502738,7.64,148.29,148.25,2.4956]
[1718307503901,7.64,148.28,148.25,2.4956]
[1718307504346,7.64,148.28,148.24,2.4958]
[1718307504644,7.64,148.28,148.25,2.4957]
[1718307505211,10.1353,148.28,148.24,2.4958]
[1718307505412,2.4952,148.29,148.22,30.403]
[1718307505632,7.64,148.3,148.26,2.4954]
[1718307506011,7.64,148.3,148.27,2.4954]
[1718307506214,47.4948,148.31,148.27,2.4954]
[1718307506516,7.64,148.3,148.27,2.4954]
[1718307506838,7.64,148.29,148.26,2.4955]
[1718307507612,47.4947,148.32,148.27,2.4953]
[1718307507914,7.64,148.31,148.28,2.4952]
[1718307508512,7.64,148.31,148.27,2.4953]
[1718307509628,10.1348,148.31,148.27,2.4953]
[1718307510242,2.4948,148.31,148.27,2.4953]
[1718307510427,10.1348,148.31,148.27,2.4953]
[1718307510939,7.64,148.3,148.26,2.4955]
[1718307511924,7.64,148.3,148.27,2.4954]
[1718307512226,7.64,148.3,148.26,2.4955]
[1718307512432,45.0,148.32,148.24,0.17]
[1718307512747,7.64,148.31,148.28,2.4952]
[1718307513480,55.1347,148.32,148.28,2.4952]
[1718307514137,55.1347,148.32,148.24,15.3154]
[1718307514138,7.64,148.32,148.24,15.3154]
[1718307514335,7.64,148.3,148.27,2.4954]
[1718307514541,2.4948,148.31,148.27,2.4954]
[1718307514876,10.1348,148.31,148.27,2.4954]
[1718307515163,7.64,148.31,148.27,2.4954]
[1718307515348,2.4946,148.32,148.27,2.4954]
[1718307515349,7.64,148.3,148.27,2.4954]
[1718307515534,7.64,148.31,148.27,2.4954]
[1718307518669,10.1349,148.3,148.26,2.4955]
[1718307518886,7.64,148.3,148.26,2.4955]
[1718307519170,4.9896,148.31,148.24,7.64]
[1718307519478,4.9896,148.31,148.24,2.4958]
[1718307519479,7.64,148.27,148.24,2.4958]
[1718307520887,7.64,148.27,148.25,2.4957]
[1718307521548,7.64,148.27,148.24,2.4958]
[1718307522349,2.4952,148.29,148.24,2.4958]
[1718307522655,7.64,148.27,148.24,2.4958]
[1718307523864,10.1354,148.27,148.22,22.763]
[1718307524091,4.9902,148.29,148.22,2.4962]
[1718307524092,7.64,148.25,148.22,2.4962]
[1718307525365,7.64,148.25,148.23,2.496]
[1718307525775,7.64,148.26,148.23,2.496]
[1718307528470,7.64,148.26,148.24,2.4959]
[1718307529057,7.64,148.26,148.23,2.496]
[1718307529260,7.64,148.26,148.22,2.4961]
[1718307530070,7.64,148.26,148.23,2.496]
[1718307531081,7.64,148.26,148.2,7.4897]
[1718307531082,10.1356,148.26,148.2,7.4897]
[1718307531386,7.64,148.25,148.22,2.4962]
[1718307532258,7.64,148.25,148.23,2.4961]
[1718307532668,7.64,148.25,148.22,2.4961]
[1718307534674,10.1358,148.25,148.21,2.4964]
[1718307534977,7.64,148.24,148.21,2.4964]
[1718307536691,4.9909,148.27,148.23,2.4961]
[1718307536692,7.64,148.25,148.23,2.4961]
[1718307538162,7.64,148.25,148.22,2.4961]
[1718307538584,2.4955,148.27,148.23,2.496]
[1718307538759,7.64,148.25,148.23,2.496]
[1718307538959,7.64,148.24,148.18,22.718]
[1718307539270,7.64,148.24,148.2,4.9931]
[1718307539658,7.64,148.24,148.21,2.4963]
[1718307540261,7.64,148.24,148.22,2.4962]
[1718307540581,55.1361,148.23,148.19,2.4967]
[1718307540791,7.64,148.22,148.19,2.4967]
[1718307541088,7.64,148.21,148.19,2.4967]
[1718307543218,7.64,148.21,148.2,2.4966]
[1718307543377,7.64,148.22,148.19,4.9935]
[1718307543578,7.64,148.22,148.2,2.4966]
[1718307544505,45.0,148.23,148.2,2.4966]
[1718307544714,7.64,148.22,148.21,2.4964]
[1718307545007,33.5488157,148.39,148.18,7.4908]
[1718307545008,8.8268,148.27,148.2,17.4755]
[1718307545203,7.64,148.24,148.22,2.4962]
[1718307545402,8.8268,148.27,148.23,2.496]
[1718307545583,7.64,148.24,148.23,2.496]
[1718307545905,7.64,148.24,148.21,4.9929]
[1718307545906,7.64,148.24,148.22,2.4962]
[1718307546795,7.64,148.24,148.21,2.4963]
[1718307550015,7.64,148.24,148.2,2.4965]
[1718307551211,10.1359,148.24,148.2,2.4965]
[1718307552911,7.64,148.24,148.2,2.4965]
[1718307554012,10.1359,148.24,148.2,2.4965]
[1718307554609,10.1359,148.24,148.19,2.4966]
[1718307555417,7.64,148.23,148.19,2.4966]
[1718307555915,10.1361,148.23,148.18,7.64]
[1718307556208,10.1361,148.23,148.19,2.4967]
[1718307557215,10.1361,148.23,148.18,2.4968]
[1718307557808,7.64,148.22,148.18,2.4968]
[1718307558598,10.1363,148.22,148.18,2.4968]
[1718307559001,7.64,148.22,148.18,2.4968]
[1718307559392,7.64,148.22,148.19,2.4967]
[1718307560299,2.496,148.24,148.19,2.4967]
[1718307560501,2.496,148.24,148.2,2.4966]
[1718307560701,47.496,148.24,148.2,2.4966]
[1718307562402,47.4958,148.25,148.2,2.4966]
[1718307563025,2.4959,148.24,148.2,2.4966]
[1718307564823,45.0,148.25,148.22,2.4962]
[1718307565128,2.6656,148.26,148.22,2.4962]
[1718307565129,7.64,148.24,148.22,2.4962]
[1718307565299,7.64,148.24,148.21,2.4963]
[1718307566221,7.64,148.24,148.22,2.4962]
[1718307566452,6.3314,148.27,148.22,4.9924]
[1718307566749,7.64,148.27,148.23,2.496]
[1718307566897,7.64,148.27,148.22,4.9924]
[1718307567102,7.64,148.27,148.24,2.4959]
[1718307567796,7.64,148.27,148.23,2.496]
[1718307568804,7.64,148.27,148.24,2.4959]
[1718307569617,18.4344,148.28,148.24,2.4959]
[1718307569819,7.64,148.27,148.24,2.4959]
[1718307570432,7.64,148.27,148.23,2.496]
[1718307571536,18.4344,148.28,148.24,2.4959]
[1718307571832,7.64,148.27,148.24,2.4959]
[1718307572606,7.64,148.27,148.23,2.496]
[1718307573328,2.4954,148.27,148.22,2.4961]
[1718307573542,7.64,148.25,148.21,2.4963]
[1718307574416,7.64,148.25,148.22,2.4962]
[1718307575733,7.64,148.26,148.23,2.4961]
[1718307576037,45.0,148.27,148.24,2.4958]
[1718307576209,15.9391,148.28,148.24,2.4958]
[1718307576415,7.64,148.27,148.25,2.4957]
[1718307576824,7.64,148.27,148.24,2.4958]